Cogmind - Beta 12 @@@ ROGUE MODE // 2023.05.23 @ 18:37:52 Player: Mr Goldstein Result: Core destroyed Performance ------------- Evolutions (5) 2500 Regions Visited (19) 3800 Robots Destroyed (10) 50 Value Destroyed (229) 229 Prototype IDs (217) 4340 Alien Tech Used (1) 200 Bonus (5046) 5046 TOTAL SCORE: 16165 Bonus ------- Pacifist 1496 Follower Combat Kills 250 Met Data Miner 300 Used Data Conduit 3000 Cogmind --------- Core Integrity 0/1000 Matter 300/300 Energy 53/100 System Corruption 0% Temperature Cool (0) Movement Flying (40) Location -5/Zhirov Parts ------- > --- POWER (1) -------- (None) > --- PROPULSION (7) --- Biomechanical Wings > --- UTILITY (7) ------ Improved Melee Analysis Suite Improved Launcher Guidance Computer > --- WEAPON (2) ------- (None) > --- INVENTORY (5) ---- Light Fission Core Micro Fission Core Hardened Medium Armor Plating Layered Light Armor Plating Makeshift Armor Plating Peak State ------------ > --- POWER ------------ Light Fission Core > --- PROPULSION ------- VTOL Module VTOL Module VTOL Module Nuclear Pulse Thruster Biomechanical Wings > --- UTILITY ---------- Improved Melee Analysis Suite Improved Launcher Guidance Computer Hardened Medium Armor Plating Hacking Suite System Shield > --- WEAPON ----------- Phasing Sabre > --- INVENTORY -------- Backup Power III [Rating: 47] Favorites ----------- Power Backup Power III Engine Backup Power III Power Core Micro Nuclear Core Propulsion VTOL Module Hover Unit Backup Propulsion III Flight Unit VTOL Module Utility Improved Launcher Guidance Computer Device Reaction Control System Storage Small Storage Unit Processor Improved Launcher Guidance Computer Hackware System Shield Protection Propulsion Shielding Weapon Backup Laser III Energy Gun Backup Laser III Launcher Improved Grenade Launcher Impact Weapon Heavy Mace Slashing Weapon Phasing Sabre Build | -11 -10 -9 -8 -7 -7 -7 -7 -7 -7 -6 -6 -6 -6 -6 -5 -5 -5 -5 -5 ------- Run | Jun Mat Mat Mat Fac Was Fac Low Low Zio Pro Fac Low Low Dat Pro Fac Upp Upp Zhi Slots Evolved 10 | . . 2 2 2 . . . . . . 2 . . . . 2 . . . Power . | . . . . . . . . . . . . . . . . . . . . Propulsion 5 | . . 1 1 1 . . . . . . 1 . . . . 1 . . . Utility 5 | . . 1 1 1 . . . . . . 1 . . . . 1 . . . Weapon . | . . . . . . . . . . . . . . . . . . . . Parts Attached 57 | . . 2 . 4 3 7 3 3 3 2 12 . . 2 1 9 . . 6 Power 7 | . . . . . . 1 . . . . 2 . . 1 . 2 . . 1 Engine 3 | . . . . . . . . . . . 1 . . 1 . 1 . . . Core 4 | . . . . . . 1 . . . . 1 . . . . 1 . . 1 Reactor . | . . . . . . . . . . . . . . . . . . . . Propulsion 13 | . . . . . 1 5 . . . . 2 . . . 1 4 . . . Treads . | . . . . . . . . . . . . . . . . . . . . Leg . | . . . . . . . . . . . . . . . . . . . . Wheel . | . . . . . . . . . . . . . . . . . . . . Hover 1 | . . . . . 1 . . . . . . . . . . . . . . Flight 12 | . . . . . . 5 . . . . 2 . . . 1 4 . . . Utility 21 | . . 2 . 4 2 1 2 . . 1 5 . . . . 2 . . 2 Device 6 | . . 2 . . 1 . 1 . . . 2 . . . . . . . . Storage 1 | . . . . . . . 1 . . . . . . . . . . . . Processor 4 | . . . . 2 1 1 . . . . . . . . . . . . . Hackware 3 | . . . . . . . . . . . 2 . . . . 1 . . . Protection 7 | . . . . 2 . . . . . 1 1 . . . . 1 . . 2 Artifact . | . . . . . . . . . . . . . . . . . . . . Weapon 16 | . . . . . . . 1 3 3 1 3 . . 1 . 1 . . 3 Energy Gun . | . . . . . . . . . . . . . . . . . . . . Energy Cannon . | . . . . . . . . . . . . . . . . . . . . Ballistic Gun . | . . . . . . . . . . . . . . . . . . . . Ballistic Cannon . | . . . . . . . . . . . . . . . . . . . . Launcher 7 | . . . . . . . 1 1 2 1 2 . . . . . . . . Special Weapon . | . . . . . . . . . . . . . . . . . . . . Impact Weapon 2 | . . . . . . . . 2 . . . . . . . . . . . Slashing Weapon 7 | . . . . . . . . . 1 . 1 . . 1 . 1 . . 3 Piercing Weapon . | . . . . . . . . . . . . . . . . . . . . Special Melee Weapon . | . . . . . . . . . . . . . . . . . . . . Unidentified Prototypes 4 | . . . . . . 1 . . 2 . . . . . . . . . 1 Parts Lost 27 | . . 2 . . 1 1 . 1 . 1 10 1 . 1 1 . 4 . 4 Power 1 | . . . . . . . . 1 . . . . . . . . . . . Propulsion 11 | . . . . . 1 . . . . . 5 1 . . . . 3 . 1 Utility 12 | . . 2 . . . 1 . . . 1 3 . . 1 1 . 1 . 2 Weapon 3 | . . . . . . . . . . . 2 . . . . . . . 1 Highest Loss Streak 10 | . . 2 . . 1 1 . 1 . 1 10 1 . 1 1 . 4 . 4 To Critical Strikes . | . . . . . . . . . . . . . . . . . . . . Average Slot Usage (%) 52 | . . 6 . 11 43 54 88 86 85 91 61 57 53 44 29 57 55 35 41 Engine 2 | . . . . . 3 2 . . 4 7 1 6 6 1 . 3 . . . Hover 1 | . . . . . 10 6 . . . . . . . . . . . . . Flight 16 | . . . . . . 11 38 38 38 38 19 10 6 6 6 25 21 11 11 Device 4 | . . 6 . . 6 5 5 7 7 . 4 13 13 6 . . . . . Storage 2 | . . . . . . . 7 7 7 7 2 . . . . . . . . Processor 10 | . . . . . 3 10 15 15 15 15 13 13 13 13 13 11 11 11 11 Hackware 3 | . . . . . . . . . . . 4 13 13 13 9 7 8 5 5 Protection 6 | . . . . 11 11 7 7 7 7 14 7 . . . . 2 5 5 7 Energy Gun 1 | . . . . . 6 6 . . . . . . . . . . . . . Launcher 1 | . . . . . . . 5 5 . 6 2 . . . . . . . . Naked Turns 180 | . 33 42 72 33 . . . . . . . . . . . . . . . Heaviest Build 24 | . . 1 . 2 10 9 19 19 12 17 24 5 5 6 . 19 19 8 13 Greatest Support 29 | 3 3 3 3 3 26 21 21 21 13 17 29 11 6 6 6 24 24 10 10 Greatest Overweight (x) 3 | . . . . . 3 2 . . . . . . . . . . . . 1 Average Overweight (x) . | . . . . . . . . . . . . . . . . . . . . Largest Inventory Capacity 8 | 5 5 5 5 5 5 5 8 8 8 8 8 5 5 5 5 5 5 5 5 Average Capacity 5 | 5 5 5 5 5 5 5 7 8 8 8 6 5 5 5 5 5 5 5 5 Most Carried 8 | . . 4 5 5 5 5 5 4 7 7 8 5 5 5 5 4 4 5 5 Average Carried 4 | . . 3 4 5 5 4 2 2 5 5 5 5 5 4 5 1 2 4 4 Final Capacity 8 | 5 5 5 5 5 5 5 8 8 8 8 5 5 5 5 5 5 5 5 5 Final Carried 7 | . . 3 5 5 5 4 2 4 7 6 5 5 5 5 5 2 4 5 5 Class Distribution -------------------- 45% | Mutant 29% | Scavenger-Sprinter 13% | Hacker-Mutant 6% | Sprinter 4% | Hacker-Sprinter Dominant Class ---------------- Mutant | -10/Materials Mutant | -9/Materials Mutant | -8/Materials Mutant | -7/Factory Mutant | -7/Waste Sprinter | -7/Factory Scavenger-Sprinter | -7/Lower Caves Scavenger-Sprinter | -7/Lower Caves Scavenger-Sprinter | -7/Zion Scavenger-Sprinter | -6/Proximity Caves Mutant | -6/Factory Hacker-Mutant | -6/Lower Caves Hacker-Mutant | -6/Lower Caves Hacker-Mutant | -6/Data Miner Mutant | -5/Proximity Caves Hacker-Sprinter | -5/Factory Hacker-Sprinter | -5/Upper Caves Mutant | -5/Upper Caves Mutant | -5/Zhirov Resources | -11 -10 -9 -8 -7 -7 -7 -7 -7 -7 -6 -6 -6 -6 -6 -5 -5 -5 -5 -5 ----------- Run | Jun Mat Mat Mat Fac Was Fac Low Low Zio Pro Fac Low Low Dat Pro Fac Upp Upp Zhi Matter Collected 748 | 184 . . . . 78 24 29 67 30 20 21 69 . . 16 28 . 60 122 Remotely . | . . . . . . . . . . . . . . . . . . . . Salvage Created 526 | . . . . . . . . 65 . . 102 . . . . 28 . . 331 Parts 26 | . . . . . . . . . . . 18 . . . . 2 . . 6 Haulers Intercepted . | . . . . . . . . . . . . . . . . . . . . Recyclers Shooed . | . . . . . . . . . . . . . . . . . . . . Parts Field Recycled . | . . . . . . . . . . . . . . . . . . . . Retrieved Matter . | . . . . . . . . . . . . . . . . . . . . Parts Self-Destructed 16 | . . . . . . . . . . . . 8 . . . . . 3 5 Prevented 4 | . . . . . . . . . . . . . . . . . . 4 . Kills | -11 -10 -9 -8 -7 -7 -7 -7 -7 -7 -6 -6 -6 -6 -6 -5 -5 -5 -5 -5 ------- Run | Jun Mat Mat Mat Fac Was Fac Low Low Zio Pro Fac Low Low Dat Pro Fac Upp Upp Zhi Combat Hostiles Destroyed 7 | . . . . . . . . . . . 7 . . . . . . . . AOE 7 | . . . . . . . . . . . 7 . . . . . . . . Classes Destroyed 6 | . . . . . . . . 2 . . 3 . . . . 1 . . . Worker 1 | . . . . . . . . . . . 1 . . . . . . . . Builder 1 | . . . . . . . . . . . 1 . . . . . . . . Operator 1 | . . . . . . . . . . . . . . . . 1 . . . Swarmer 5 | . . . . . . . . . . . 5 . . . . . . . . Cutter 2 | . . . . . . . . . . . 2 . . . . . . . . Decomposer 1 | . . . . . . . . 1 . . . . . . . . . . . Samaritan 1 | . . . . . . . . 1 . . . . . . . . . . . Best Kill Streak 5 | . . . . . . . . . . . 5 . . . . 1 . . . Combat Bots Only 4 | . . . . . . . . . . . 4 . . . . . . . . Max Kills in Single Turn 3 | . . . . . . . . 1 . . 3 . . . . 1 . . . Gunslinging . | . . . . . . . . . . . . . . . . . . . . Exploded 3 | . . . . . . . . . . . 3 . . . . . . . . Melee . | . . . . . . . . . . . . . . . . . . . . Uniques/NPCs Destroyed . | . . . . . . . . . . . . . . . . . . . . Combat | -11 -10 -9 -8 -7 -7 -7 -7 -7 -7 -6 -6 -6 -6 -6 -5 -5 -5 -5 -5 -------- Run | Jun Mat Mat Mat Fac Was Fac Low Low Zio Pro Fac Low Low Dat Pro Fac Upp Upp Zhi Damage Taken 4202 | . 56 316 213 307 94 281 14 44 . 66 801 55 . 233 162 64 312 . 1184 Core 2482 | . 56 242 213 288 32 66 14 . . 16 208 17 . 186 138 22 70 . 914 Absorbed by Shields . | . . . . . . . . . . . . . . . . . . . . Redirected to Shielding 303 | . . . . . 13 25 . . . . 93 . . . . . . . 172 Regen/Repaired (Parts) 55 | . . . . . 29 . . . 26 . . . . . . . . . . Core Remaining (%) 58 | 100 77 39 61 . . . . . . 40 . . . . 35 . . . . Volleys Fired 7 | . . . . . . . . . . . 7 . . . . . . . . Largest 1 | . . . . . . . . . . . 1 . . . . . . . . Hottest 36 | . . . . . . . . . . . 36 . . . . . . . . Shots Fired 7 | . . . . . . . . . . . 7 . . . . . . . . Gun . | . . . . . . . . . . . . . . . . . . . . Cannon . | . . . . . . . . . . . . . . . . . . . . Launcher 7 | . . . . . . . . . . . 7 . . . . . . . . Special . | . . . . . . . . . . . . . . . . . . . . Kinetic . | . . . . . . . . . . . . . . . . . . . . Thermal . | . . . . . . . . . . . . . . . . . . . . Explosive 7 | . . . . . . . . . . . 7 . . . . . . . . Electromagnetic . | . . . . . . . . . . . . . . . . . . . . Robot Hit Streak 3 | . . . . . . . . . . . 3 . . . . . . . . Robot Miss Streak 1 | . . . . . . . . . . . 1 . . . . . . . . Penetration Max . | . . . . . . . . . . . . . . . . . . . . Secondary Targets . | . . . . . . . . . . . . . . . . . . . . Shots Hit Robots 16 | . . . . . . . . 2 . . 6 . . 1 . 1 . . 6 Core Hits 16 | . . . . . . . . . . . 14 . . . . . . . 2 Critical Kills . | . . . . . . . . . . . . . . . . . . . . Critical Parts Destroyed 1 | . . . . . . . . 1 . . . . . . . . . . . Critical Strikes 1 | . . . . . . . . 1 . . . . . . . . . . . Smash 1 | . . . . . . . . 1 . . . . . . . . . . . Melee Attacks 37 | . . . . . . . . 2 . . 25 . . 1 . 2 . . 7 Impact 2 | . . . . . . . . 2 . . . . . . . . . . . Slashing 35 | . . . . . . . . . . . 25 . . 1 . 2 . . 7 Piercing . | . . . . . . . . . . . . . . . . . . . . Sneak Attacks 3 | . . . . . . . . 2 . . . . . 1 . . . . . Combat Hostiles . | . . . . . . . . . . . . . . . . . . . . Follow-up Attacks . | . . . . . . . . . . . . . . . . . . . . Damage Inflicted 1709 | . . 31 1 . . . . 174 . . 782 . . 109 . 56 . . 556 Guns . | . . . . . . . . . . . . . . . . . . . . Cannons . | . . . . . . . . . . . . . . . . . . . . Explosions 782 | . . . . . . . . . . . 782 . . . . . . . . Melee 895 | . . . . . . . . 174 . . . . . 109 . 56 . . 556 Ramming 32 | . . 31 1 . . . . . . . . . . . . . . . . Kinetic . | . . . . . . . . . . . . . . . . . . . . Thermal . | . . . . . . . . . . . . . . . . . . . . Explosive 782 | . . . . . . . . . . . 782 . . . . . . . . Electromagnetic . | . . . . . . . . . . . . . . . . . . . . Impact 174 | . . . . . . . . 174 . . . . . . . . . . . Slashing 721 | . . . . . . . . . . . . . . 109 . 56 . . 556 Piercing . | . . . . . . . . . . . . . . . . . . . . Highest Corruption 2 | . . . . . . . . . . . 2 2 2 2 2 . . . . Average Corruption 2 | . . . . . . . . . . . 2 2 2 2 2 . . . . Corruption Purged . | . . . . . . . . . . . . . . . . . . . . Corruption Blocked . | . . . . . . . . . . . . . . . . . . . . Effects 9 | . . . . . . . . . . . 3 1 1 1 3 . . . . Message Errors 2 | . . . . . . . . . . . 1 . . 1 . . . . . Matter Fused 3 | . . . . . . . . . . . 1 1 . . 1 . . . . Heat Flow Errors 1 | . . . . . . . . . . . . . . . 1 . . . . Parts Rejected 1 | . . . . . . . . . . . . . . . 1 . . . . Data Loss (major) 1 | . . . . . . . . . . . 1 . . . . . . . . Alerts 1 | . . . . . . . . . . . . . 1 . . . . . . Overload Shots . | . . . . . . . . . . . . . . . . . . . . Overflow Damage 590 | . . . . . . . . 170 . . 77 . . 49 . 36 . . 258 Projectiles . | . . . . . . . . . . . . . . . . . . . . Explosions 77 | . . . . . . . . . . . 77 . . . . . . . . Melee 513 | . . . . . . . . 170 . . . . . 49 . 36 . . 258 Knockbacks . | . . . . . . . . . . . . . . . . . . . . Impact . | . . . . . . . . . . . . . . . . . . . . Kinetic . | . . . . . . . . . . . . . . . . . . . . Secondary . | . . . . . . . . . . . . . . . . . . . . Self-Inflicted Damage 137 | . . 14 . . . . . . . . 123 . . . . . . . . Shots 3 | . . . . . . . . . . . 3 . . . . . . . . Rammed 5 | . . 4 1 . . . . . . . . . . . . . . . . Targets Rammed 5 | . . 4 1 . . . . . . . . . . . . . . . . Kicked . | . . . . . . . . . . . . . . . . . . . . Crushed . | . . . . . . . . . . . . . . . . . . . . Highest Temperature 133 | . . . . . . 17 2 2 . . 133 . . . 120 3 21 . . Average Temperature 39 | . . . . . . 7 2 2 . . 57 . . . 71 3 10 . . Received Heat Transfer 558 | . 30 156 90 96 . 18 . . . 12 36 18 . . 21 9 72 . . Siege Activations . | . . . . . . . . . . . . . . . . . . . . Robots Corrupted . | . . . . . . . . . . . . . . . . . . . . Combat Hostiles . | . . . . . . . . . . . . . . . . . . . . Parts Fried . | . . . . . . . . . . . . . . . . . . . . Impact Corruptions 6 | . . . . . . . . 6 . . . . . . . . . . . Robots Melted . | . . . . . . . . . . . . . . . . . . . . Combat Hostiles . | . . . . . . . . . . . . . . . . . . . . Parts Melted . | . . . . . . . . . . . . . . . . . . . . Heat Transferred . | . . . . . . . . . . . . . . . . . . . . Parts Sabotaged . | . . . . . . . . . . . . . . . . . . . . Parts Stolen . | . . . . . . . . . . . . . . . . . . . . Parts Stripped . | . . . . . . . . . . . . . . . . . . . . Power Chain Reactions . | . . . . . . . . . . . . . . . . . . . . Missiles Intercepted . | . . . . . . . . . . . . . . . . . . . . Alert | -11 -10 -9 -8 -7 -7 -7 -7 -7 -7 -6 -6 -6 -6 -6 -5 -5 -5 -5 -5 ------- Run | Jun Mat Mat Mat Fac Was Fac Low Low Zio Pro Fac Low Low Dat Pro Fac Upp Upp Zhi Peak Influence 557 | . 15 45 138 137 93 278 . . . . 557 . . . . 55 . . . Initial 62 | . . 5 18 62 47 . . . . . 9 . . . . 18 . . . Average 142 | . 12 24 69 84 42 87 . . . . 380 . . . . 29 . . . Maximum Alert Level 2 | . . . . . . 1 . . . . 2 . . . . . . . . Low Security (%) 77 | 100 100 100 100 100 100 82 . . . . 23 . . . . 100 . . . Level 1 7 | . . . . . . 17 . . . . 17 . . . . . . . . Level 2 15 | . . . . . . . . . . . 58 . . . . . . . . Level 3 . | . . . . . . . . . . . . . . . . . . . . Level 4 . | . . . . . . . . . . . . . . . . . . . . Level 5 . | . . . . . . . . . . . . . . . . . . . . High Security . | . . . . . . . . . . . . . . . . . . . . Max Security . | . . . . . . . . . . . . . . . . . . . . Squads Dispatched 7 | . 1 . 2 1 . 1 . . . . 1 . . . . 1 . . . Investigation 2 | . 1 . . 1 . . . . . . . . . . . . . . . Extermination . | . . . . . . . . . . . . . . . . . . . . Reinforcement 5 | . . . 2 . . 1 . . . . 1 . . . . 1 . . . Assault . | . . . . . . . . . . . . . . . . . . . . Garrison . | . . . . . . . . . . . . . . . . . . . . Intercept . | . . . . . . . . . . . . . . . . . . . . Searches Triggered . | . . . . . . . . . . . . . . . . . . . . Construction Impeded . | . . . . . . . . . . . . . . . . . . . . Haulers Reinforced . | . . . . . . . . . . . . . . . . . . . . Active Scanning Responses . | . . . . . . . . . . . . . . . . . . . . Cargo Convoy Interrupts . | . . . . . . . . . . . . . . . . . . . . Stealth | -11 -10 -9 -8 -7 -7 -7 -7 -7 -7 -6 -6 -6 -6 -6 -5 -5 -5 -5 -5 --------- Run | Jun Mat Mat Mat Fac Was Fac Low Low Zio Pro Fac Low Low Dat Pro Fac Upp Upp Zhi Distress Signals 9 | . . 2 2 1 . 3 . . . . 1 . . . . . . . . Communications Jammed . | . . . . . . . . . . . . . . . . . . . . Distress Signals . | . . . . . . . . . . . . . . . . . . . . Times Spotted 132 | . 7 8 19 18 5 16 4 1 . 1 28 2 . 4 6 3 10 . . Peak Tracking Total 18 | . 7 7 18 8 3 6 7 1 . 1 12 3 . 4 4 2 10 . . Tactical Retreats 18 | . . 1 2 1 . 1 . 1 . 1 6 1 . . 2 . 2 . . Traps | -11 -10 -9 -8 -7 -7 -7 -7 -7 -7 -6 -6 -6 -6 -6 -5 -5 -5 -5 -5 ------- Run | Jun Mat Mat Mat Fac Was Fac Low Low Zio Pro Fac Low Low Dat Pro Fac Upp Upp Zhi Traps Triggered 7 | . 2 . . 5 . . . . . . . . . . . . . . . Indirectly . | . . . . . . . . . . . . . . . . . . . . Trap Hack Attempts . | . . . . . . . . . . . . . . . . . . . . Triggered . | . . . . . . . . . . . . . . . . . . . . Disarmed . | . . . . . . . . . . . . . . . . . . . . Reprogrammed . | . . . . . . . . . . . . . . . . . . . . Reused . | . . . . . . . . . . . . . . . . . . . . Traps Extracted . | . . . . . . . . . . . . . . . . . . . . Installed . | . . . . . . . . . . . . . . . . . . . . Triggered 2 | . . . . . . . . . . . . . . . 1 . . 1 . Machines | -11 -10 -9 -8 -7 -7 -7 -7 -7 -7 -6 -6 -6 -6 -6 -5 -5 -5 -5 -5 ---------- Run | Jun Mat Mat Mat Fac Was Fac Low Low Zio Pro Fac Low Low Dat Pro Fac Upp Upp Zhi Machines Disabled 4 | . . . . . . 1 . . . . 2 . . . . . . . 1 Max in Single Turn 2 | . . . . . . . . . . . 2 . . . . . . . 1 Machines Repaired . | . . . . . . . . . . . . . . . . . . . . Machines Sabotaged . | . . . . . . . . . . . . . . . . . . . . Overloaded Fab Kills . | . . . . . . . . . . . . . . . . . . . . Hacking | -11 -10 -9 -8 -7 -7 -7 -7 -7 -7 -6 -6 -6 -6 -6 -5 -5 -5 -5 -5 --------- Run | Jun Mat Mat Mat Fac Was Fac Low Low Zio Pro Fac Low Low Dat Pro Fac Upp Upp Zhi Machines Accessed 15 | . . . . 2 . 1 1 . . 1 3 . . 3 . . . . 4 Terminals 5 | . . . . 1 . 1 . . . 1 2 . . . . . . . . Fabricators 2 | . . . . 1 . . . . . . 1 . . . . . . . . Repair Stations . | . . . . . . . . . . . . . . . . . . . . Recycling Units . | . . . . . . . . . . . . . . . . . . . . Scanalyzers . | . . . . . . . . . . . . . . . . . . . . Garrison Access . | . . . . . . . . . . . . . . . . . . . . Total Hacks 47 | . . . . 5 . 1 1 . . 1 7 . . 19 . . . . 13 Successful 38 | . . . . . . 1 1 . . 1 3 . . 19 . . . . 13 Failed 9 | . . . . 5 . . . . . . 4 . . . . . . . . Catastrophic . | . . . . . . . . . . . . . . . . . . . . Database Lockouts . | . . . . . . . . . . . . . . . . . . . . Manual 4 | . . . . 3 . 1 . . . . . . . . . . . . . Terminals 9 | . . . . 3 . 1 . . . 1 4 . . . . . . . . Fabricators 5 | . . . . 2 . . . . . . 3 . . . . . . . . Repair Stations . | . . . . . . . . . . . . . . . . . . . . Recycling Units . | . . . . . . . . . . . . . . . . . . . . Scanalyzers . | . . . . . . . . . . . . . . . . . . . . Garrison Access . | . . . . . . . . . . . . . . . . . . . . Terminal Hacks 38 | . . . . . . 1 1 . . 1 3 . . 19 . . . . 13 Record 10 | . . . . . . . 1 . . 1 1 . . 2 . . . . 5 Part Schematic 13 | . . . . . . . . . . . . . . 9 . . . . 4 Robot Schematic 5 | . . . . . . . . . . . . . . 5 . . . . . Robot Analysis 1 | . . . . . . . . . . . 1 . . . . . . . . Prototype ID Bank 8 | . . . . . . . . . . . 1 . . 3 . . . . 4 Branch Access Points 1 | . . . . . . 1 . . . . . . . . . . . . . Fabricator Hacks . | . . . . . . . . . . . . . . . . . . . . Repair Station Hacks . | . . . . . . . . . . . . . . . . . . . . Recycling Unit Hacks . | . . . . . . . . . . . . . . . . . . . . Scanalyzer . | . . . . . . . . . . . . . . . . . . . . Garrison Access Hacks . | . . . . . . . . . . . . . . . . . . . . Unauthorized Hacks . | . . . . . . . . . . . . . . . . . . . . Terminals . | . . . . . . . . . . . . . . . . . . . . Fabricators . | . . . . . . . . . . . . . . . . . . . . Repair Stations . | . . . . . . . . . . . . . . . . . . . . Recycling Units . | . . . . . . . . . . . . . . . . . . . . Scanalyzers . | . . . . . . . . . . . . . . . . . . . . Garrison Access . | . . . . . . . . . . . . . . . . . . . . Data Cores Recovered . | . . . . . . . . . . . . . . . . . . . . Used . | . . . . . . . . . . . . . . . . . . . . Hacking Detections 5 | . . . . 2 . 1 . . . . 2 . . . . . . . . Full Trace Events 1 | . . . . 1 . . . . . . . . . . . . . . . Feedback Events . | . . . . . . . . . . . . . . . . . . . . Feedback Blocked . | . . . . . . . . . . . . . . . . . . . . Robot Schematics Acquired 8 | . . . . . . . . . 3 . . . . 5 . . . . . Robots Built . | . . . . . . . . . . . . . . . . . . . . Authchips . | . . . . . . . . . . . . . . . . . . . . Time . | . . . . . . . . . . . . . . . . . . . . Total Robot Build Rating . | . . . . . . . . . . . . . . . . . . . . Part Schematics Acquired 27 | . . . . . . . . . 14 . . . . 9 . . . . 4 Parts Built . | . . . . . . . . . . . . . . . . . . . . Authchips . | . . . . . . . . . . . . . . . . . . . . Time . | . . . . . . . . . . . . . . . . . . . . Total Part Build Rating . | . . . . . . . . . . . . . . . . . . . . Parts Repaired . | . . . . . . . . . . . . . . . . . . . . Time . | . . . . . . . . . . . . . . . . . . . . Parts Recycled . | . . . . . . . . . . . . . . . . . . . . Recycled Matter . | . . . . . . . . . . . . . . . . . . . . Retrieved Matter . | . . . . . . . . . . . . . . . . . . . . Retrieved Components . | . . . . . . . . . . . . . . . . . . . . Parts Scanalyzed . | . . . . . . . . . . . . . . . . . . . . Part Schematics Acquired . | . . . . . . . . . . . . . . . . . . . . Parts Damaged . | . . . . . . . . . . . . . . . . . . . . Bothacking | -11 -10 -9 -8 -7 -7 -7 -7 -7 -7 -6 -6 -6 -6 -6 -5 -5 -5 -5 -5 ------------ Run | Jun Mat Mat Mat Fac Was Fac Low Low Zio Pro Fac Low Low Dat Pro Fac Upp Upp Zhi Used RIF Installer . | . . . . . . . . . . . . . . . . . . . . Robots Hacked . | . . . . . . . . . . . . . . . . . . . . Non-combat . | . . . . . . . . . . . . . . . . . . . . Combat . | . . . . . . . . . . . . . . . . . . . . Robot Hacks Applied . | . . . . . . . . . . . . . . . . . . . . Relay Couplers Released . | . . . . . . . . . . . . . . . . . . . . Fabnet Peak Effective % . | . . . . . . . . . . . . . . . . . . . . Robots Rewired . | . . . . . . . . . . . . . . . . . . . . Allies Hacked . | . . . . . . . . . . . . . . . . . . . . Hacks Repelled . | . . . . . . . . . . . . . . . . . . . . Allies | -11 -10 -9 -8 -7 -7 -7 -7 -7 -7 -6 -6 -6 -6 -6 -5 -5 -5 -5 -5 -------- Run | Jun Mat Mat Mat Fac Was Fac Low Low Zio Pro Fac Low Low Dat Pro Fac Upp Upp Zhi Total Allies 19 | . . . . . 19 . . . . . . . . . . . . . . Largest Group 19 | . . . . . 19 5 . . . . . . . . . . . . . Highest-Rated Group 475 | . . . . . 475 153 . . . . . . . . . . . . . Highest-Rated Ally 35 | . . . . . 35 35 . . . . . . . . . . . . . Total Orders . | . . . . . . . . . . . . . . . . . . . . Ally Attacks 126 | . . . . . 109 17 . . . . . . . . . . . . . Total Damage 5063 | . . . . . 4624 439 . . . . . . . . . . . . . Kills 20 | . . . . . 13 7 . . . . . . . . . . . . . Allies Corrupted . | . . . . . . . . . . . . . . . . . . . . Allies Melted . | . . . . . . . . . . . . . . . . . . . . Intel | -11 -10 -9 -8 -7 -7 -7 -7 -7 -7 -6 -6 -6 -6 -6 -5 -5 -5 -5 -5 ------- Run | Jun Mat Mat Mat Fac Was Fac Low Low Zio Pro Fac Low Low Dat Pro Fac Upp Upp Zhi Robot Analysis Total 132 | . . . . . . . . . . . 1 . . 131 . . . . . Derelict Logs Recovered 11 | . . . . . . . 1 1 2 3 . 3 . . 1 . . . . Drone Launches . | . . . . . . . . . . . . . . . . . . . . Drone Recoveries . | . . . . . . . . . . . . . . . . . . . . Exploration | -11 -10 -9 -8 -7 -7 -7 -7 -7 -7 -6 -6 -6 -6 -6 -5 -5 -5 -5 -5 ------------- Run | Jun Mat Mat Mat Fac Was Fac Low Low Zio Pro Fac Low Low Dat Pro Fac Upp Upp Zhi Turns Passed 2209 | 11 33 99 72 150 205 151 83 117 207 140 295 109 46 43 142 83 70 43 110 Spaces Moved 5268 | 23 66 177 137 282 197 340 344 305 592 522 643 269 115 90 351 246 240 124 205 Core 832 | 23 66 177 137 282 136 11 . . . . . . . . . . . . . Treads . | . . . . . . . . . . . . . . . . . . . . Legs . | . . . . . . . . . . . . . . . . . . . . Wheels . | . . . . . . . . . . . . . . . . . . . . Hover 151 | . . . . . 61 90 . . . . . . . . . . . . . Flight 4285 | . . . . . . 239 344 305 592 522 643 269 115 90 351 246 240 124 205 Fastest Speed 23 | 50 50 50 50 50 50 23 23 23 29 26 23 34 40 40 40 25 25 34 34 Average Speed 35 | 50 50 50 50 50 77 40 23 25 29 26 28 36 40 40 40 26 28 34 35 Slowest Speed 200 | 50 50 50 50 50 200 150 23 29 29 29 35 40 40 40 40 27 34 34 106 Overloaded Moves 86 | . . . . . . . . . . . 86 . . . . . . . . Propulsion Burnouts . | . . . . . . . . . . . . . . . . . . . . Robots Hopped 17 | . . . . . . 2 . . . . 4 1 1 3 . 2 4 . . Cave-ins Triggered . | . . . . . . . . . . . . . . . . . . . . Exploration Rate (%) 41 | 3 25 22 22 15 84 13 58 45 73 73 21 48 28 78 62 8 52 28 68 Regions Visited 19 Branch Regions 11 Pre-discovered Areas 39 | . . . . . . . . . 2 . . 1 . 32 1 . . . 3 Known Exits Taken 5 | . . . . . . 1 . . . . 1 1 . . 1 1 . . . Unknown Exits Taken 12 | 1 1 1 1 . . . 1 1 1 1 . . 1 1 . . 1 1 . Scrap Searched 20 | . . . . . . . 1 5 3 3 . 2 1 . 2 . 1 2 . Spaces Dug 26 | . . . . . . . . . . . 25 . . . . 1 . . . Terrain Destroyed 83 | . . . . . . . . . . . 82 . . . . 1 . . . Melee 26 | . . . . . . . . . . . 25 . . . . 1 . . . Projectile . | . . . . . . . . . . . . . . . . . . . . AOE 57 | . . . . . . . . . . . 57 . . . . . . . . Terrain Rammed . | . . . . . . . . . . . . . . . . . . . . Walls Destroyed . | . . . . . . . . . . . . . . . . . . . . Machines Disabled . | . . . . . . . . . . . . . . . . . . . . Actions | -11 -10 -9 -8 -7 -7 -7 -7 -7 -7 -6 -6 -6 -6 -6 -5 -5 -5 -5 -5 --------- Run | Jun Mat Mat Mat Fac Was Fac Low Low Zio Pro Fac Low Low Dat Pro Fac Upp Upp Zhi Total 5533 | 22 65 186 139 290 251 350 347 341 627 524 706 278 113 94 351 256 237 124 232 Wait 132 | . . . . . 47 . . 27 27 . 15 11 . . . . . . 5 Move 5219 | 22 65 176 136 282 196 335 343 304 591 521 635 266 112 84 350 241 232 123 205 Hop 14 | . . . . . . 2 . . . . 3 1 1 2 . 2 3 . . Pick Up 23 | . . 4 2 2 . . 1 2 1 1 5 . . . . 2 . 1 2 Fast Attach 27 | . . 1 . 4 3 6 . . 3 . 3 . . . 1 3 . . 3 Attach 29 | . . 1 . . . 1 3 3 . 2 8 . . 2 . 5 . . 4 Detach 15 | . . . . . . . . 3 2 . 2 . . 3 . . 2 . 3 Swap 2 | . . . . . . . . . . . 1 . . . . 1 . . . Drop 23 | . . . . 2 5 6 . . 3 . 2 . . 2 . . . . 3 Fire 7 | . . . . . . . . . . . 7 . . . . . . . . Melee 37 | . . . . . . . . 2 . . 25 . . 1 . 2 . . 7 Ram 5 | . . 4 1 . . . . . . . . . . . . . . . . Kick . | . . . . . . . . . . . . . . . . . . . . Crush . | . . . . . . . . . . . . . . . . . . . . Escape Stasis . | . . . . . . . . . . . . . . . . . . . . Rewire . | . . . . . . . . . . . . . . . . . . . . Trap . | . . . . . . . . . . . . . . . . . . . . Miscellaneous . | . . . . . . . . . . . . . . . . . . . . Route ------- -11/Junkyard -10/Materials -9/Materials -8/Materials (discovered 2 exits: *Fac / [*Sto]) -7/Factory -7/Waste -7/Factory (discovered 2 exits: *Low x2) -7/Lower Caves -7/Lower Caves -7/Zion -6/Proximity Caves -6/Factory (discovered 3 exits: *Fac x2 / *Low) -6/Lower Caves -6/Lower Caves -6/Data Miner -5/Proximity Caves -5/Factory (discovered 3 exits: Fac / *Upp x2) -5/Upper Caves -5/Upper Caves -5/Zhirov (discovered 1 exit: [*Pro]) History --------- Turn | Location | Event 5 | -11/Junkyard | Discovered new exit (range 15) 12 | -11/Junkyard | Entered Materials 40 | -10/Materials | Discovered new exit (range 10) 45 | -10/Materials | Entered another Materials area 45 | -9/Materials | Evolved 2 slots: Propulsion x1, Utility x1 113 | -9/Materials | Core integrity fell below 50% 140 | -9/Materials | Discovered new exit (range 6) 144 | -9/Materials | Entered another Materials area 144 | -8/Materials | Evolved 2 slots: Propulsion x1, Utility x1 196 | -8/Materials | Discovered new exit (range 15) 209 | -8/Materials | Discovered new exit (range 13) 216 | -8/Materials | Entered Factory 216 | -7/Factory | Evolved 2 slots: Propulsion x1, Utility x1 308 | -7/Factory | Build established: Mutant 356 | -7/Factory | Assembled infested ambush trap array 366 | -7/Factory | Sucked down chute 366 | -7/Factory | Entered Waste 367 | -7/Waste | Met a frightened Derelict 421 | -7/Waste | Warlord forces began an assault 481 | -7/Waste | Spotted C-40 Crusher 483 | -7/Waste | Allies destroyed C-40 Crusher 483 | -7/Waste | Spotted C-40 Crusher 488 | -7/Waste | Allies destroyed C-40 Crusher 489 | -7/Waste | Spotted C-40 Crusher 493 | -7/Waste | Spotted C-40 Crusher 496 | -7/Waste | Allies destroyed C-40 Crusher 497 | -7/Waste | Spotted C-40 Crusher 505 | -7/Waste | Allies destroyed C-40 Crusher 509 | -7/Waste | Spotted C-40 Crusher 513 | -7/Waste | Allies destroyed C-40 Crusher 517 | -7/Waste | Discovered new exit (range 13) 571 | -7/Waste | Entered Factory 571 | -7/Factory | Accompanied by 5 allies 698 | -7/Factory | Identified exit to Lower Caves 699 | -7/Factory | Core integrity fell below 50% 722 | -7/Factory | Entered Lower Caves 794 | -7/Lower Caves | Ambushed by research squad 803 | -7/Lower Caves | Discovered new exit (range 15) 805 | -7/Lower Caves | Entered another Lower Caves area 819 | -7/Lower Caves | Spotted B-75 Beast 846 | -7/Lower Caves | Learned location of 1 exit from Factory 919 | -7/Lower Caves | Discovered new exit (range 11) 922 | -7/Lower Caves | Entered Zion 932 | -7/Zion | Discovered new exit (range 15) 955 | -7/Zion | Found Prototype Launcher 955 | -7/Zion | Identified Rocket Array 1002 | -7/Zion | Learned location of Data Miner (-6) 1040 | -7/Zion | Build established: Scavenger-Sprinter 1078 | -7/Zion | Learned Factory stockpile data 1129 | -7/Zion | Entered Proximity Caves 1131 | -6/Proximity Caves | Spotted B-75 Beast 1143 | -6/Proximity Caves | Learned 8 Factory zone layouts 1261 | -6/Proximity Caves | Learned 4 Factory zone layouts 1263 | -6/Proximity Caves | Discovered new exit (range 6) 1269 | -6/Proximity Caves | Entered Factory 1269 | -6/Factory | Evolved 2 slots: Propulsion x1, Utility x1 1270 | -6/Factory | Identified exit to Lower Caves 1271 | -6/Factory | Identified exit to Factory 1354 | -6/Factory | Discovered exit to Factory (range 11) 1431 | -6/Factory | Lost 10 parts (5n3u2w) 1564 | -6/Factory | Entered Lower Caves 1587 | -6/Lower Caves | Learned location of Extension (-6) 1603 | -6/Lower Caves | Learned 4 Factory zone layouts 1634 | -6/Lower Caves | Attracted the attention of an 0b10 checkpoint 1646 | -6/Lower Caves | Encountered a Warlord checkpoint 1659 | -6/Lower Caves | Identified exit to Lower Caves 1673 | -6/Lower Caves | Entered another Lower Caves area 1716 | -6/Lower Caves | Discovered new exit (range 8) 1719 | -6/Lower Caves | Entered Data Miner 1719 | -6/Data Miner | Discovered new exit (range 6) 1729 | -6/Data Miner | Met Data Miner 1736 | -6/Data Miner | Learned location of Section 7 (-3) 1736 | -6/Data Miner | Acquired the access code to Warlord's prototype stash 1743 | -6/Data Miner | Received God Mode back door access code from Data Miner 1748 | -6/Data Miner | Interfaced with the Data Conduit 1762 | -6/Data Miner | Entered Proximity Caves 1766 | -5/Proximity Caves | Spotted B-75 Beast 1768 | -5/Proximity Caves | Core integrity fell below 50% 1813 | -5/Proximity Caves | Build established: Hacker-Mutant 1822 | -5/Proximity Caves | Attracted the attention of an 0b10 checkpoint 1899 | -5/Proximity Caves | Discovered exit to Factory (range 11) 1904 | -5/Proximity Caves | Entered Factory 1904 | -5/Factory | Evolved 2 slots: Propulsion x1, Utility x1 1905 | -5/Factory | Identified exit to Upper Caves 1906 | -5/Factory | Identified exit to Factory 1907 | -5/Factory | Loaded intel: 253 machine locations 1987 | -5/Factory | Entered Upper Caves 2052 | -5/Upper Caves | Discovered new exit (range 15) 2053 | -5/Upper Caves | Lost 4 parts (3n1u) 2057 | -5/Upper Caves | Entered another Upper Caves area 2092 | -5/Upper Caves | Discovered new exit (range 15) 2100 | -5/Upper Caves | Entered Zhirov 2100 | -5/Zhirov | Discovered new exit (range 4) 2124 | -5/Zhirov | Found Alien Artifact 2124 | -5/Zhirov | Identified Integrated Dissipator 2124 | -5/Zhirov | Installed Integrated Dissipator, increased core heat dissipation (+20) 2180 | -5/Zhirov | Cloak Generator disabled 2180 | -5/Zhirov | Attacked by Zhirov 2210 | -5/Zhirov | Core destroyed Last Messages --------------- 02159_ KS-NXI(L) destroyed. 02161_ Antigrav System fries itself beyond repair. 02161_ Acquired 10 matter. 02176_ Dropped Exp. Propulsion Shielding. 02177_ Acquired Exp. Propulsion Shielding. 02180_ Cloak Generator disabled. 02190_ Enhanced Grunt warps into view. 02210_ Enhanced Grunt destroyed. 02210_ Zhirov's Terminal disabled. 02210_ Enhanced Grunt destroyed. 02210_ Quantum Analyzer disabled. 02210_ System Shield destroyed. 02210_ Phasing Sabre destroyed. 02210_ Exp. Propulsion Shielding destroyed. 02210_ VTOL Module destroyed. 02210_ Quantum Analyzer disabled. 02210_ Enhanced Grunt destroyed. 02210_ Machine disabled. 02210_ B-86 Titan destroyed. 02210_ Machine disabled. Map ----- +----------------------------------------------------+ | ???????????????????????????????????????? | | ???????????????????????????????????????? | | ???????????????????????????????????????? | | ???????????????????????????"""#????????? | | ???????????????????????????#""#????????? | | ??????????????????????????##""##???????? | | ????????????????????###??##""""##??????? | | ????????????######### ##?#""""""#??????# | | ????????????#""""""" #?# "" " #?????## | | ????#######?#" " ### ##?#### | | ????#"X"X"#?# ### | | ????#X X# | | ????#" | | ????#" % g ###### | | ???? ##????## | | ???? % """" #??????? | | ??? """"#??????? | | ??? """##??????? | | ?? "##???????? | | ?? "#????????? | | ?? ??????????? | | ?" ?????????? | | ?" ?????????? | | ?" ????????? | | ?" ????????? | | ?"" @ ????????? | | ?"" ????????? | | ???# ????????? | | ???# ?????????? | | ???### ?????????? | | ?????### ??????????? | | ???????#"" #"??????????? | | ???????#" " ##???????????? | | ???????# "% % *= #????????????? | | ???????# %"%%" = ###????????????? | | ???????########## ###??????????????? | | ?????????????????######????????????????? | | ???????????????????????????????????????? | | ???????????????????????????????????????? | | ???????????????????????????????????????? | | ???????????????????????????????????????? | | ???????????????????????????????????????? | | ???????????????????????????????????????? | | ???????????????????????????????????????? | | ???????????????????????????????????????? | | | | | | | | | | | +----------------------------------------------------+ Best States ------------- Heat Dissipation 60 Energy Generation 18 Energy Capacity 160 Matter Stores 300 Matter Capacity 300 Sight Range 16 Robot Scan Range 18 Terrain Scan Density 10 Armor Coverage 225 Propulsion Shielding 90 Utility Shielding 66 Evasion (%) 73 Melee Accuracy 6 Launcher Accuracy 30 Offensive Hacking 10 Defensive Hacking 22 Item Schematics ----------------- Imp. Deuterium Engine | -7/Zion | Archive Imp. Trap Scanner | -7/Zion | Archive Spear | -7/Zion | Archive Imp. Shield Generator | -7/Zion | Archive Thermic Laser | -7/Zion | Archive System Restoration Module | -7/Zion | Archive KE Penetrator | -7/Zion | Archive Disruptor Cannon | -7/Zion | Archive Mak. Axe | -7/Zion | Archive Imp. Particle Charger | -7/Zion | Archive Shock Absorption System | -7/Zion | Archive Angular Momentum Engine | -7/Zion | Archive Lgt. Fission Core | -7/Zion | Archive Hvy. Ion Cannon | -7/Zion | Archive Combat Drone Bay | -6/Data Miner | Free Lgt. Regenerative Plating | -6/Data Miner | Free Cld. Gravmag System | -6/Data Miner | Free Prc. Energy Filter | -6/Data Miner | Free Thunder Hammer | -6/Data Miner | Free Myomer Leg | -6/Data Miner | Free Adv. Cryofiber Web | -6/Data Miner | Free Adv. Datajack | -6/Data Miner | Free Mic. Antimatter Reactor | -6/Data Miner | Free Assault Drone Bay | -5/Zhirov | Free Exp. Heat Sink | -5/Zhirov | Free Exp. Optical Array | -5/Zhirov | Free Imp. Arc Thrower | -5/Zhirov | Free Robot Schematics ------------------ Y-54 Guardian | -7/Zion | Archive A-02 Transporter | -7/Zion | Archive B-48 Gladiator | -7/Zion | Archive R-10 Processor | -6/Data Miner | Free H-66 Slayer | -6/Data Miner | Free P-70 Sage | -6/Data Miner | Free Y-64 Sentinel | -6/Data Miner | Free L-61 Swordsman | -6/Data Miner | Free Fabricated ------------ Nothing Alien Tech Used ----------------- Integrated Dissipator Achievements -------------- None Challenges ------------ None Game ------ Seed ParticleNeutrinoDerivative Manual? 0 Play Time 00:44:22 Cumulative 236.3 hours Start 2023.05.23 @ 17:53:31 End 2023.05.23 @ 18:37:52 Sessions 1 Manual Loads 0 Difficulty Rogue Special Mode None Game No. 704 Rogue 704 Adventurer 0 Explorer 0 Win Type - Total 10 Types 8/0/1/1/0/0/0/0/0 Lore% 83 Gallery% 82 Achievement% 73 Wizard Run 0 Options --------- ASCII 0 Keyboard 0 Movement Numpad Keybinds 0 Fullscreen 1 Font 16/SmallcapsGlow Map View 75x55 Tactical HUD 1 Map Filters NONE Filters NONE Steam 1 RUN: 58c20b7e-7b1c-438b-8e87-cdd6a292e8d0